bitfinex-derivatives/quotes_SOLF0:USTF0_20250411
["timestamp","ask_amount","ask_price","bid_price","bid_amount"]
[1744396564790,0.05853964,120.79,120.78,3.4782963]
[1744396564986,0.05853964,120.79,120.78,3.47759293]
[1744396565492,0.05853964,120.79,120.78,11.76099293]
[1744396566394,35.44,120.84,120.78,27.80548246]
[1744396566594,631.7,120.87,120.83,16.04788953]
[1744396566791,35.44,120.87,120.86,8.278]
[1744396567091,35.44,120.87,120.84,16.04788953]
[1744396567500,35.50071651,120.87,120.85,3.47071176]
[1744396567698,35.50071651,120.87,120.86,3.47023258]
[1744396568000,35.50071651,120.87,120.84,24.38650498]
[1744396568199,35.50071651,120.87,120.85,3.47180419]
[1744396568400,35.50071651,120.87,120.85,8.2785]
[1744396570502,35.50071651,120.87,120.84,70.33861545]
[1744396571097,35.50071651,120.87,120.84,62.05961545]
[1744396572199,35.50071651,120.87,120.84,70.33871545]
[1744396572402,35.50071651,120.87,120.84,62.05961545]
[1744396572704,35.50071651,120.87,120.84,70.33841545]
[1744396573000,8.278,120.86,120.84,0.05961545]
[1744396573210,35.50071651,120.87,120.84,0.05961545]
[1744396573604,8.2783,120.86,120.84,0.05961545]
[1744396573906,35.50071651,120.87,120.84,0.05961545]
[1744396574705,35.50071651,120.87,120.85,8.2781]
[1744396575210,0.06071651,120.87,120.86,8.278]
[1744396576107,0.06071651,120.87,120.84,0.05961545]
[1744396576608,0.06071651,120.87,120.85,8.2782]
[1744396577908,0.06071651,120.87,120.86,8.278]
[1744396579702,1.651e-05,120.87,120.86,8.278]
[1744396579901,631.62,120.94,120.86,64.48484955]
[1744396580113,631.62,120.94,120.88,25.63456733]
[1744396580613,631.62,120.94,120.92,8.2735]
[1744396580812,631.62,120.94,120.88,25.63456733]
[1744396581008,631.67770175,120.94,120.92,0.06204801]
[1744396581209,631.67770175,120.94,120.87,4.5004]
[1744396581611,631.67770175,120.94,120.89,0.05752315]
[1744396581812,8.2735,120.93,120.9,8.2749]
[1744396582118,631.67770175,120.94,120.89,0.05752315]
[1744396582911,8.2752,120.9,120.89,0.05752315]
[1744396583111,43.6752,120.9,120.89,0.05752315]
[1744396583314,8.2771,120.88,120.85,8.2782]
[1744396583511,35.4,120.87,120.85,8.2782]
[1744396584018,35.4,120.87,120.86,8.278]
[1744396585913,0.05209442,120.88,120.85,0.05595819]
[1744396586212,0.05209442,120.88,120.86,25.63456733]
[1744396586417,0.05209442,120.88,120.87,8.2773]
[1744396591326,0.05209442,120.88,120.85,0.05595819]
[1744396593627,0.05209442,120.88,120.87,8.2773]
[1744396596227,35.4,120.92,120.86,18.3089484]
[1744396596421,35.4,120.92,120.89,16.0148484]
[1744396596623,35.4,120.92,120.91,8.2745]
[1744396597121,43.6743,120.92,120.89,24.2901484]
[1744396597327,43.6743,120.92,120.9,0.06065]
[1744396597516,35.4,120.92,120.9,0.06065]
[1744396597727,35.4,120.92,120.9,8.33525]
[1744396598428,35.4,120.92,120.91,8.2745]
[1744396598626,0.05552013,120.93,120.91,16.0148484]
[1744396599129,0.05552013,120.93,120.92,8.2739]
[1744396601523,0.05552013,120.93,120.91,8.2742]
[1744396601720,0.05552013,120.93,120.9,0.06065]
[1744396602130,0.05552013,120.93,120.9,8.33555]
[1744396602530,0.05552013,120.93,120.9,0.06065]
[1744396602932,0.05552013,120.93,120.91,8.2745]
[1744396603131,8.32922013,120.93,120.9,0.06065]
[1744396603626,8.32922013,120.93,120.9,8.33585]
[1744396603931,0.05552013,120.93,120.9,0.06065]
[1744396604128,0.05552013,120.93,120.92,8.2739]
[1744396605934,8.32882013,120.93,120.9,0.06065]
[1744396607333,8.32882013,120.93,120.9,8.33545]
[1744396608439,0.05552013,120.93,120.91,8.2745]
[1744396610029,0.05552013,120.93,120.92,8.2739]
[1744396610733,0.05552013,120.93,120.91,8.2741]
[1744396612443,8.32872013,120.93,120.91,8.2741]
[1744396612939,0.05552013,120.93,120.91,8.2741]
[1744396613128,0.05552013,120.93,120.92,8.2739]
[1744396613640,0.05552013,120.93,120.91,8.2741]
[1744396614641,8.32892013,120.93,120.9,8.33545]
[1744396615841,8.2739,120.92,120.9,8.33545]
[1744396616037,0.05552013,120.93,120.9,8.33545]
[1744396616646,8.32902013,120.93,120.9,8.33545]
[1744396617036,8.32902013,120.93,120.91,8.2744]
[1744396618246,8.32902013,120.93,120.9,8.33545]
[1744396618545,35.34,120.92,120.9,0.06065]
[1744396619744,43.6142,120.92,120.9,8.33565]
[1744396620245,43.6142,120.92,120.9,0.06065]
[1744396620442,35.34,120.92,120.9,0.06065]
[1744396620648,0.05552013,120.93,120.91,3.4725548]
[1744396620846,0.05552013,120.93,120.9,0.06065]
[1744396621046,0.05552013,120.93,120.91,3.4723579]
[1744396621352,0.05552013,120.93,120.9,0.06065]
[1744396621546,0.05552013,120.93,120.92,8.2739]
[1744396621746,0.05552013,120.93,120.92,11.74660504]
[1744396622445,0.05552013,120.93,120.92,3.47270504]
[1744396622646,0.05552013,120.93,120.9,0.06065]
[1744396622849,8.2741,120.92,120.9,0.06065]
[1744396623150,43.5741,120.92,120.9,8.33545]
[1744396623642,8.2745,120.91,120.9,0.06065]
[1744396624550,43.5742,120.92,120.9,0.06065]
[1744396624856,35.3,120.92,120.91,3.47570979]
[1744396625047,0.05552013,120.93,120.91,3.47570979]
[1744396625243,0.05552013,120.93,120.92,11.74946521]
[1744396626245,35.3,120.98,120.92,7.71536521]
[1744396626450,35.3,120.98,120.95,25.59572642]
[1744396626650,595.62,121.0,120.96,3.47556521]
[1744396626842,595.62,121.0,120.97,3.47346354]
[1744396627038,141.65252122,121.01,120.95,25.59572642]
[1744396627242,0.05322744,120.99,120.96,3.52969905]
[1744396627452,0.05322744,120.99,120.96,0.05609642]
[1744396627850,0.05322744,120.99,120.97,3.47153402]
[1744396628151,0.05322744,120.99,120.96,0.05609642]
[1744396628856,0.05322744,120.99,120.98,8.2697]
[1744396629952,0.05322744,120.99,120.98,11.73859863]
[1744396630145,0.05322744,120.99,120.98,8.2697]
[1744396632054,595.5,121.06,120.98,3.46598898]
[1744396632256,35.28,121.04,120.99,15.98476528]
[1744396632742,51.26476528,121.04,120.95,15.98476528]
[1744396633054,8.2695,120.99,120.96,3.46391637]
[1744396633254,43.5495,120.99,120.98,0.05305767]
[1744396634559,43.54,120.99,120.88,15.98476528]
[1744396634755,15.98476528,120.96,120.89,3.4633666]
[1744396635053,8.2728,120.94,120.9,3.4633666]
[1744396635243,8.2728,120.94,120.91,19.44813188]
[1744396635445,8.2728,120.94,120.91,0.05808337]
[1744396635645,8.32503494,120.94,120.91,0.05808337]
[1744396635850,0.05223494,120.94,120.91,0.05808337]
[1744396636358,8.32503494,120.94,120.91,0.05808337]
[1744396636750,0.05223494,120.94,120.91,0.05808337]
[1744396637760,0.05223494,120.94,120.92,8.2735]
[1744396638160,0.05223494,120.94,120.91,0.05808337]
[1744396638357,8.2739,120.92,120.91,0.05808337]
[1744396638556,43.5539,120.92,120.91,0.05808337]
[1744396638953,35.28,120.92,120.91,0.05808337]
[1744396639554,43.5539,120.92,120.91,0.05808337]
[1744396640463,35.28,120.92,120.91,0.05808337]
[1744396641458,43.5539,120.92,120.91,0.05808337]
[1744396642564,35.28,120.92,120.91,0.05808337]
[1744396643873,0.05223494,120.94,120.91,0.05808337]
[1744396644165,8.2732,120.93,120.91,0.05808337]
[1744396644365,0.05223494,120.94,120.91,0.05808337]
[1744396644666,0.05223494,120.94,120.92,8.2734]
[1744396644871,0.05223494,120.94,120.91,62.05808337]
[1744396645059,8.32513494,120.94,120.91,70.33198337]
[1744396645764,8.32513494,120.94,120.92,8.2738]
[1744396646064,8.32513494,120.94,120.91,0.05808337]
[1744396646065,8.2733,120.93,120.91,0.05808337]
[1744396646267,0.05223494,120.94,120.91,8.33218337]
[1744396646968,0.05223494,120.94,120.91,0.05808337]
[1744396647265,2.21073494,120.94,120.86,22.51726528]
[1744396647465,2.1585,120.94,120.87,3.46621689]
[1744396647658,2.1585,120.94,120.88,3.46621689]
[1744396647855,2.1585,120.94,120.86,22.51726528]
[1744396648061,8.2739,120.92,120.89,8.2755]
[1744396648263,35.3,120.91,120.89,8.2755]
[1744396648459,35.3,120.91,120.89,8.33237546]
[1744396649167,43.5746,120.91,120.89,8.33237546]
[1744396650265,35.3,120.91,120.9,8.2752]
[1744396650766,35.3,120.91,120.9,11.74019884]
[1744396651168,35.3,120.91,120.9,11.74043786]
[1744396651763,0.0603464,120.92,120.91,8.2745]
[1744396652463,0.0603464,120.92,120.91,11.73913244]
[1744396652669,35.26,120.96,120.94,8.2723]
[1744396653070,8.2708,120.97,120.94,8.2723]
[1744396654073,8.33263964,120.97,120.94,8.33024756]
[1744396654266,8.2712,120.96,120.94,8.33024756]
[1744396654466,0.06183964,120.97,120.94,8.33024756]
[1744396654672,0.06183964,120.97,120.94,0.05794756]
[1744396654874,0.06183964,120.97,120.95,15.98476528]
[1744396655173,0.06183964,120.97,120.96,8.2711]
[1744396657375,0.06183964,120.97,120.95,24.25616528]
[1744396657569,0.06183964,120.97,120.94,0.05794756]
[1744396657767,35.24,120.96,120.94,0.05794756]
[1744396658077,35.24,120.96,120.94,8.32974756]
[1744396658276,35.24,120.96,120.94,0.05794756]
[1744396659277,35.24,120.96,120.95,8.2718]
[1744396660978,35.24,120.96,120.94,8.33004756]
[1744396661375,35.24,120.96,120.95,8.2718]
[1744396662882,35.24,120.96,120.94,8.33004756]
[1744396663071,35.24,120.96,120.94,0.05794756]
[1744396663477,43.5117,120.96,120.94,0.05794756]
[1744396663681,35.24,120.96,120.94,0.05794756]
[1744396664282,43.5115,120.96,120.94,0.05794756]
[1744396664781,35.24,120.96,120.89,15.98476528]
[1744396665383,8.2741,120.92,120.89,8.2753]
[1744396665584,35.24,120.92,120.87,15.98476528]
[1744396665986,0.06271747,120.91,120.88,0.06104094]
[1744396666386,0.06271747,120.91,120.89,8.2754]
[1744396667887,0.06271747,120.91,120.88,0.06104094]
[1744396669987,0.06271747,120.91,120.89,8.2756]
[1744396670881,0.06271747,120.91,120.89,15.98476528]
[1744396671483,0.06271747,120.91,120.9,8.2752]
[1744396671881,0.06271747,120.91,120.89,8.2755]
[1744396672179,0.06271747,120.91,120.88,0.06104094]
[1744396672387,8.33761747,120.91,120.88,8.33724094]
[1744396672886,8.33761747,120.91,120.89,8.2756]
[1744396673084,0.06271747,120.91,120.89,8.2756]
[1744396673478,0.06271747,120.91,120.88,0.06104094]
[1744396673684,0.06271747,120.91,120.89,15.98476528]
[1744396674989,0.06271747,120.91,120.88,0.06104094]
[1744396675384,8.2755,120.9,120.88,8.33714094]
[1744396675582,0.06271747,120.91,120.88,0.06104094]
[1744396675788,16.04748275,120.91,120.88,0.06104094]
[1744396676290,8.2759,120.89,120.88,0.06104094]
[1744396676479,43.5359,120.89,120.88,0.06104094]
[1744396682797,35.26,120.89,120.83,77.98476528]
[1744396682998,35.26,120.89,120.84,3.46542936]
[1744396683298,35.26,120.89,120.88,8.2766]
[1744396685292,0.05551557,120.9,120.89,8.2759]
[1744396685493,0.05551557,120.9,120.89,24.26066528]
[1744396686204,0.05551557,120.9,120.89,15.98476528]
[1744396686394,0.05551557,120.9,120.87,16.04717298]
[1744396686692,8.33121557,120.9,120.88,3.46386042]
[1744396686900,8.33121557,120.9,120.87,8.3396077]
[1744396687099,8.33121557,120.9,120.88,3.46367854]
[1744396687399,8.33121557,120.9,120.87,8.3396077]
[1744396687598,8.33121557,120.9,120.88,3.46379999]
[1744396687796,8.2759,120.89,120.87,0.0624077]
[1744396688099,35.2,120.89,120.87,0.0624077]
[1744396688300,51.18476528,120.89,120.81,24.26566528]
[1744396688501,6.5516,120.88,120.82,3.46414915]
[1744396688703,8.2798,120.84,120.83,3.46414915]
[1744396688906,43.4798,120.84,120.81,15.98476528]
[1744396689110,43.4798,120.84,120.82,3.46425019]
[1744396689312,43.53599346,120.84,120.82,0.06288154]
[1744396689717,8.28,120.83,120.82,0.06288154]
[1744396690011,8.28,120.83,120.82,3.52581954]
[1744396690211,35.25619346,120.84,120.82,3.52581954]
[1744396690411,35.25619346,120.84,120.82,0.06288154]
[1744396691114,43.53569346,120.84,120.82,0.06288154]
[1744396692315,8.28,120.83,120.82,0.06288154]
[1744396696211,35.25619346,120.84,120.82,0.06288154]
[1744396696711,35.25619346,120.84,120.82,16.04764682]
[1744396696911,35.22,120.87,120.82,16.04764682]
[1744396697112,35.22,120.87,120.85,15.98476528]
[1744396697418,43.4976,120.87,120.84,8.279]
[1744396698016,43.4976,120.87,120.84,8.33825779]
[1744396698316,35.2777352,120.87,120.84,0.05925779]
[1744396698915,8.2784,120.86,120.84,0.05925779]
[1744396699218,35.2777352,120.87,120.84,0.05925779]
[1744396700016,8.278,120.86,120.84,0.05925779]
[1744396700323,35.2777352,120.87,120.84,0.05925779]
[1744396700618,8.2786,120.85,120.84,0.05925779]
[1744396703217,8.2809,120.82,120.78,18.27846528]
[1744396703417,8.2809,120.82,120.79,3.45837606]
[1744396703618,8.282,120.81,120.76,15.98476528]
[1744396703818,35.22,120.83,120.77,3.45871756]
[1744396704012,35.22,120.83,120.78,3.45871756]
[1744396704221,8.34347977,120.81,120.78,8.34509531]
[1744396706022,0.06167977,120.81,120.78,8.34509531]
[1744396706228,35.22,120.8,120.78,8.34509531]
[1744396706522,43.5021,120.8,120.78,8.34509531]
[1744396706822,35.22,120.8,120.78,8.34509531]
[1744396707024,35.22,120.8,120.79,8.2828]
[1744396707625,35.22,120.8,120.78,8.34489531]
[1744396708422,35.22,120.8,120.79,8.2828]
[1744396708622,35.22,120.8,120.79,11.74480455]
[1744396709321,35.22,120.8,120.78,0.06189531]
[1744396710127,35.22,120.8,120.78,8.34529531]
[1744396710325,0.06167977,120.81,120.79,3.46322704]
[1744396710526,0.06167977,120.81,120.8,3.46322704]
[1744396710725,0.06167977,120.81,120.8,11.74532704]
[1744396711324,0.06167977,120.81,120.8,3.46322704]
[1744396711528,0.06167977,120.81,120.78,0.06189531]
[1744396711727,0.06167977,120.81,120.79,3.46336196]
[1744396711928,0.06167977,120.81,120.78,0.06189531]
[1744396712120,8.34337977,120.81,120.79,3.46337726]
[1744396712320,8.34337977,120.81,120.78,24.32976059]
[1744396712527,8.34337977,120.81,120.78,8.34499531]
[1744396713531,35.18,120.8,120.78,8.34499531]
[1744396714330,43.4621,120.8,120.78,8.34499531]
[1744396714932,43.4621,120.8,120.78,0.06189531]
[1744396715229,8.2828,120.79,120.78,0.06189531]
[1744396716621,43.4624,120.8,120.78,0.06189531]
[1744396716826,35.18,120.8,120.78,0.06189531]
[1744396717935,35.18,120.8,120.79,8.2828]
[1744396718337,43.4621,120.8,120.78,0.06189531]
[1744396719337,43.4621,120.8,120.78,8.34499531]
[1744396720135,35.18,120.8,120.78,8.34499531]
[1744396721035,8.2828,120.79,120.78,0.06189531]
[1744396721933,43.4625,120.8,120.78,0.06189531]
[1744396722536,35.18,120.8,120.78,0.06189531]
[1744396723137,35.18,120.8,120.79,8.2828]
[1744396724337,35.18,120.8,120.79,11.7460938]
[1744396725930,35.18,120.8,120.78,24.32976059]
[1744396726238,35.18,120.8,120.79,3.46355521]
[1744396727040,35.18,120.8,120.79,11.74635521]
[1744396728342,35.18,120.8,120.79,3.46355521]
[1744396729442,35.18,120.8,120.79,11.74635521]
[1744396730542,35.18,120.8,120.79,8.2828]
[1744396731243,35.18,120.8,120.79,11.75303541]
[1744396733549,43.4621,120.8,120.79,3.47023541]
[1744396733748,35.18,120.8,120.78,0.06189531]
[1744396734249,8.2828,120.79,120.78,0.06189531]
[1744396743352,8.285,120.76,120.72,15.98476528]
[1744396743553,35.14,120.76,120.73,3.47615753]
[1744396743740,8.2861,120.75,120.74,3.47615753]
[1744396744547,35.19629595,120.76,120.73,0.05467698]
[1744396745349,8.2862,120.74,120.73,0.05467698]
[1744396745553,15.98476528,120.74,120.67,8.2904]
[1744396745849,15.98476528,120.74,120.68,3.47643323]
[1744396745850,8.2893,120.7,120.68,3.47643323]
[1744396746054,35.14,120.73,120.69,3.47613295]
[1744396746245,43.4273,120.73,120.68,15.98476528]
[1744396746450,43.4273,120.73,120.69,3.47288016]
[1744396746650,0.05314016,120.72,120.7,3.47288016]
[1744396746855,0.05314016,120.72,120.71,3.47288016]
[1744396748554,0.05314016,120.72,120.7,15.98476528]
[1744396748555,0.05314016,120.72,120.7,24.27306528]
[1744396748859,0.05314016,120.72,120.71,3.47039341]
[1744396749447,0.05314016,120.72,120.71,8.2882]
[1744396750159,0.05314016,120.72,120.71,11.75736988]
[1744396750953,0.05314016,120.72,120.71,3.46916988]
[1744396751156,0.05314016,120.72,120.7,24.27336528]
[1744396751353,0.05314016,120.72,120.7,18.56710945]
[1744396752457,8.34084016,120.72,120.69,8.34641297]
[1744396752653,8.34084016,120.72,120.69,18.62492242]
[1744396753262,8.34084016,120.72,120.69,8.34641297]
[1744396753460,8.2887,120.71,120.69,0.05711297]
[1744396753650,0.05314016,120.72,120.69,0.05711297]
[1744396754056,8.2889,120.7,120.69,0.05711297]
[1744396755458,43.4489,120.7,120.69,0.05711297]
[1744396755756,8.2901,120.69,120.66,8.2914]
[1744396756262,35.16,120.7,120.64,22.64026646]
[1744396756453,43.4492,120.7,120.67,8.2905]
[1744396757162,35.21660302,120.7,120.68,8.2901]
[1744396757360,35.21660302,120.7,120.67,0.04134595]
[1744396757751,43.50600302,120.7,120.67,8.33204595]
[1744396759160,8.2897,120.69,120.67,0.04134595]
[1744396759664,8.2897,120.69,120.67,8.33234595]
[1744396760661,35.21660302,120.7,120.67,0.04134595]
[1744396760856,8.2903,120.68,120.67,0.04134595]
[1744396764962,8.2929,120.65,120.62,62.0]
[1744396765263,35.16,120.65,120.6,16.06356646]
[1744396765461,35.16,120.65,120.61,8.2948]
[1744396765660,8.2937,120.64,120.61,8.2948]
[1744396766167,8.35616843,120.64,120.61,8.2948]
[1744396768372,0.06246843,120.64,120.6,16.06356646]
[1744396768568,0.06246843,120.64,120.62,16.06356646]
[1744396768776,37.4613,120.71,120.62,16.06356646]
[1744396769065,37.4613,120.71,120.63,22.90206646]
[1744396769271,37.4613,120.71,120.66,8.291]
[1744396769272,8.2897,120.69,120.66,8.291]
[1744396769768,8.2897,120.69,120.66,8.34594356]
[1744396769973,8.34522557,120.69,120.66,8.34594356]
[1744396770375,8.34522557,120.69,120.67,8.2908]
[1744396771176,8.34522557,120.69,120.66,8.34594356]
[1744396771377,8.34522557,120.69,120.66,0.05494356]
[1744396771578,0.05552557,120.69,120.66,62.05494356]
[1744396771877,0.05552557,120.69,120.67,8.291]
[1744396772382,0.05552557,120.69,120.66,62.05494356]
[1744396773572,0.05552557,120.69,120.68,8.2903]
[1744396775279,0.05552557,120.69,120.68,18.57263098]
[1744396780082,2.2505,120.74,120.68,10.28233098]
[1744396780273,35.14,120.77,120.72,10.28233098]
[1744396780471,35.14,120.77,120.75,10.28233098]
[1744396780676,35.14,120.77,120.73,10.28233098]
[1744396780878,10.28233098,120.76,120.72,10.28233098]
[1744396781079,10.28233098,120.74,120.69,10.28233098]
[1744396781280,35.14,120.73,120.71,10.28233098]
[1744396781476,49.79623098,120.75,120.71,10.28233098]
[1744396781673,0.06206202,120.73,120.71,10.28233098]
[1744396781878,0.06206202,120.73,120.72,8.2876]
[1744396783181,0.06206202,120.73,120.71,18.57033098]
[1744396783387,0.06206202,120.73,120.7,10.34547841]
[1744396783681,8.34926202,120.73,120.7,18.63377841]
[1744396784279,8.2876,120.72,120.7,8.35144743]
[1744396784487,8.2876,120.72,120.7,0.06314743]
[1744396784678,45.42233098,120.72,120.7,0.06314743]
[1744396784874,35.14,120.72,120.7,10.34547841]
[1744396785075,35.14,120.72,120.71,8.2882]
[1744396785479,0.06206202,120.73,120.71,10.28233098]
[1744396785675,0.06206202,120.73,120.72,18.56993098]
[1744396786281,0.06206202,120.73,120.72,22.03640916]
[1744396788791,0.06206202,120.73,120.71,8.2879]
[1744396788987,0.06206202,120.73,120.7,10.34547841]
[1744396789188,0.06206202,120.73,120.71,13.75247077]
[1744396789379,0.06206202,120.73,120.71,10.28233098]
[1744396789584,0.06206202,120.73,120.72,3.47069917]
[1744396789890,0.06206202,120.73,120.72,18.56993098]
[1744396790984,0.06206202,120.73,120.72,22.04045055]
[1744396792390,0.06206202,120.73,120.72,18.56993098]
[1744396792786,0.06206202,120.73,120.72,22.0396673]
[1744396794390,35.12,120.78,120.72,13.75079944]
[1744396794591,35.12,120.78,120.75,10.28233098]
[1744396794989,35.12,120.78,120.76,8.2842]
[1744396795187,35.12,120.78,120.75,10.28233098]
[1744396795381,35.12,120.78,120.76,10.28233098]
[1744396795681,0.05720996,120.78,120.77,8.2841]
[1744396797293,0.05720996,120.78,120.76,18.56683098]
[1744396797888,0.05720996,120.78,120.75,10.3349984]
[1744396798190,45.45954094,120.78,120.75,0.05266742]
[1744396798689,8.2848,120.76,120.75,0.05266742]
[1744396800293,35.17720996,120.78,120.75,0.05266742]
[1744396800594,35.17720996,120.78,120.76,10.28233098]
[1744396800796,35.17720996,120.78,120.77,8.2841]
[1744396800991,0.05720996,120.78,120.77,18.56643098]
[1744396801789,35.12,120.84,120.81,8.2808]
[1744396802189,35.12,120.84,120.81,10.28233098]
[1744396802591,35.12,120.84,120.8,10.28233098]
[1744396802793,10.28233098,120.82,120.77,97.12]
[1744396802996,10.28233098,120.81,120.77,10.28233098]
[1744396803193,35.12,120.81,120.78,0.0634011]
[1744396803398,0.05867275,120.8,120.79,8.2827]
[1744396803799,0.05867275,120.8,120.78,0.0634011]
[1744396804305,8.34107275,120.8,120.78,0.0634011]
[1744396805002,0.05867275,120.8,120.78,0.0634011]
[1744396805607,8.2828,120.79,120.78,0.0634011]
[1744396806312,8.34117275,120.8,120.78,0.0634011]
[1744396806607,0.05867275,120.8,120.78,0.0634011]
[1744396807209,8.2828,120.79,120.78,0.0634011]
[1744396807407,0.05867275,120.8,120.78,0.0634011]
[1744396807599,0.05867275,120.8,120.78,16.10437071]
[1744396807804,35.08,120.87,120.82,8.2806]
[1744396808010,35.08,120.87,120.81,16.04096961]
[1744396808304,6.5185,120.89,120.83,16.04096961]
[1744396808810,35.08,120.9,120.83,16.04096961]
[1744396809010,0.05652844,120.87,120.86,8.2773]
[1744396809901,6.6658,120.92,120.88,8.2759]
[1744396810104,8.2753,120.9,120.88,8.2759]
[1744396810305,22.70676961,120.92,120.84,62.0]
[1744396810512,22.70676961,120.92,120.83,16.04096961]
[1744396810701,8.2783,120.86,120.82,37.3883]
[1744396810906,8.2783,120.86,120.84,8.2792]
[1744396811113,0.05211744,120.85,120.84,8.2792]
[1744396811312,0.05211744,120.85,120.83,8.33881696]
[1744396811610,0.05211744,120.85,120.83,0.05911696]
[1744396812015,0.05211744,120.85,120.84,8.2793]
[1744396813015,0.05211744,120.85,120.83,8.33881696]
[1744396813813,0.05211744,120.85,120.83,0.05911696]
[1744396814112,8.33111744,120.85,120.83,0.05911696]
[1744396814613,8.33111744,120.85,120.83,8.33881696]
[1744396814812,0.05211744,120.85,120.83,8.33881696]
[1744396815215,0.05211744,120.85,120.84,8.2793]
[1744396816418,0.05211744,120.85,120.83,8.33871696]
[1744396816812,0.05211744,120.85,120.83,8.33901696]
[1744396817011,8.33091744,120.85,120.83,0.05911696]
[1744396817315,0.05211744,120.85,120.83,0.05911696]
[1744396817616,35.11211744,120.85,120.83,0.05911696]
[1744396817918,43.39111744,120.85,120.83,0.05911696]
[1744396819118,43.39111744,120.85,120.83,8.33901696]
[1744396820219,43.39111744,120.85,120.83,0.05911696]
[1744396820418,8.2793,120.84,120.83,0.05911696]
[1744396821819,43.39111744,120.85,120.83,0.05911696]
[1744396823122,16.04096961,120.84,120.77,2.1496]
[1744396823321,16.04096961,120.84,120.73,86.8595]
[1744396823322,16.04096961,120.82,120.74,4.2934]
[1744396823522,35.06,120.81,120.75,3.44714493]
[1744396823723,8.2825,120.8,120.74,4.2934]
[1744396823921,8.2825,120.8,120.75,3.4471273]
[1744396824119,8.2825,120.8,120.74,4.2934]
[1744396824321,0.05469971,120.79,120.77,8.2838]
[1744396825222,8.33749971,120.79,120.77,8.2838]
[1744396826422,0.05469971,120.79,120.77,8.2838]
[1744396827122,8.33769971,120.79,120.77,8.2838]
[1744396828213,8.33769971,120.79,120.76,8.34627112]
[1744396828726,8.33769971,120.79,120.77,8.284]
[1744396828921,0.05469971,120.79,120.76,0.06187112]
[1744396829127,0.05469971,120.79,120.77,16.04096961]
[1744396829928,0.05469971,120.79,120.78,8.2834]
[1744396830428,0.05469971,120.79,120.78,11.73841641]
[1744396830728,0.05469971,120.79,120.77,8.2838]
[1744396830925,0.05469971,120.79,120.76,0.06187112]
[1744396831929,0.05469971,120.79,120.77,8.2835]
[1744396832433,0.05469971,120.79,120.78,8.2834]
[1744396834533,8.33749971,120.79,120.76,0.06187112]
[1744396835034,8.33749971,120.79,120.76,8.34627112]
[1744396835233,8.33749971,120.79,120.76,0.06187112]
[1744396836338,8.33749971,120.79,120.77,8.284]
[1744396836936,8.33749971,120.79,120.76,8.34627112]
[1744396837129,0.05469971,120.79,120.76,0.06187112]
[1744396837736,8.2838,120.78,120.76,0.06187112]
[1744396838636,0.05469971,120.79,120.76,0.06187112]
[1744396839236,8.2841,120.77,120.76,0.06187112]
[1744396839938,16.04096961,120.77,120.7,6.6293]
[1744396840142,16.04096961,120.77,120.71,3.46451835]
[1744396840439,35.04,120.78,120.72,3.46424374]
[1744396840639,8.2855,120.75,120.7,6.69]
[1744396840839,8.2855,120.75,120.72,8.2874]
[1744396841241,8.34356186,120.75,120.72,8.34490087]
[1744396841542,8.2862,120.74,120.72,0.05750087]
[1744396842039,8.2869,120.73,120.72,0.05750087]
[1744396842344,35.09806186,120.75,120.72,0.05750087]
[1744396842536,8.2868,120.74,120.72,0.05750087]
[1744396842942,35.09806186,120.75,120.72,0.05750087]
[1744396843136,8.2869,120.73,120.72,0.05750087]
[1744396843336,35.09806186,120.75,120.72,0.05750087]
[1744396843539,0.05806186,120.75,120.72,0.05750087]
[1744396843839,0.05806186,120.75,120.74,8.2862]
[1744396847136,596.14,120.8,120.74,19.50056123]
[1744396847344,43.3417,120.81,120.76,16.04096961]
[1744396848444,0.0530931,120.8,120.77,0.06105248]
[1744396848642,0.0530931,120.8,120.79,8.2828]
[1744396849846,0.0530931,120.8,120.78,8.2831]
[1744396851444,8.3352931,120.8,120.78,8.2831]
[1744396852548,0.0530931,120.8,120.77,0.06105248]
[1744396853043,8.2834,120.78,120.77,0.06105248]
[1744396854145,8.2831,120.79,120.77,0.06105248]
[1744396854350,8.2831,120.79,120.77,8.34515248]
[1744396856647,8.2831,120.79,120.77,0.06105248]
[1744396857545,8.2834,120.78,120.77,0.06105248]
[1744396857946,0.0530931,120.8,120.77,8.34515248]
[1744396858351,8.2831,120.79,120.77,8.34515248]
[1744396858947,8.2834,120.78,120.77,0.06105248]